Cogmind - Beta 12 @@@ ROGUE MODE // 2023.07.08 @ 21:39:33 Player: Senator Honkstrong Result: Core destroyed Performance ------------- Evolutions (2) 1000 Regions Visited (8) 1600 Robots Destroyed (176) 880 Value Destroyed (4508) 4508 Prototype IDs (46) 920 Alien Tech Used (0) 0 Bonus (1343) 1343 TOTAL SCORE: 10251 Bonus ------- High Alert Combat Kills 467 Follower Combat Kills 21 Entered Garrisons 200 Used RIF Installer 1000 Aligned with FarCom 300 Friendly Fire -645 Cogmind --------- Core Integrity 0/550 Matter 250/300 Energy 101/280 System Corruption 1% Temperature Critical (558) Movement Core (600) Ox11 Location -8/Garrison Parts ------- > --- POWER (1) -------- Cooled Ion Engine > --- PROPULSION (3) --- (None) > --- UTILITY (4) ------ Large Storage Unit Advanced Weapon Cycler Advanced Transmission Jammer (fused) Relay Coupler [Specialist] (10) > --- WEAPON (3) ------- Particle Gun Light Assault Rifle > --- INVENTORY (15) --- Experimental Heat Sink High-capacity Matter Pod (200) Experimental Targeting Computer Light Armor Plating Graphene Brace Army-in-a-Box (30/30) 8R-AWN's Boregun Improved Datajack Peak State ------------ > --- POWER ------------ Cooled Ion Engine > --- PROPULSION ------- Improved Carbon-fiber Leg Improved Carbon-fiber Leg Improved Carbon-fiber Leg > --- UTILITY ---------- Large Storage Unit Improved Targeting Computer Advanced Weapon Cycler Advanced Transmission Jammer > --- WEAPON ----------- AWS/Gauss 8R-AWN's Boregun > --- INVENTORY -------- Reinforced Fission Core Improved Carbon-fiber Leg Experimental Heat Sink High-capacity Matter Pod Experimental Targeting Computer Army-in-a-Box Gauss Rifle Heavy Battle Rifle Mini Grenade Launcher Improved Datajack [Rating: 68] Favorites ----------- Power Cooled Ion Engine Engine Cooled Ion Engine Power Core Light Nuclear Core Propulsion Light Treads Treads Light Treads Leg Improved Carbon-fiber Leg Utility Large Storage Unit Device Advanced Weapon Cycler Storage Large Storage Unit Processor Targeting Computer Hackware Relay Coupler [Specialist] Protection Reflective Plating Weapon Assault Rifle Energy Gun Medium Laser Energy Cannon Advanced Beam Cannon Ballistic Gun Assault Rifle Launcher Mini Grenade Launcher Special Weapon Plasma Cutter Special Melee Weapon Improved Datajack Build | -11 -10 -10 -9 -9 -9 -8 -8 -8 ------- Run | Jun Mat Min Mat Min Exi Min Mat Gar Slots Evolved 4 | . . . 2 . . . 2 . Power . | . . . . . . . . . Propulsion 1 | . . . . . . . 1 . Utility 2 | . . . 1 . . . 1 . Weapon 1 | . . . 1 . . . . . Parts Attached 128 | 6 6 4 37 4 17 4 34 16 Power 13 | 1 2 . 3 . 2 . 5 . Engine 8 | 1 1 . 2 . 1 . 3 . Core 5 | . 1 . 1 . 1 . 2 . Reactor . | . . . . . . . . . Propulsion 27 | 2 . 2 5 . 2 . 13 3 Treads 22 | 2 . 2 5 . 2 . 8 3 Leg 5 | . . . . . . . 5 . Wheel . | . . . . . . . . . Hover . | . . . . . . . . . Flight . | . . . . . . . . . Utility 23 | 1 2 . 8 . 3 3 4 2 Device 8 | . . . 1 . 2 1 4 . Storage 2 | 1 1 . . . . . . . Processor 3 | . 1 . . . . 2 . . Hackware 1 | . . . . . . . . 1 Protection 9 | . . . 7 . 1 . . 1 Artifact . | . . . . . . . . . Weapon 65 | 2 2 2 21 4 10 1 12 11 Energy Gun 6 | 1 1 . 3 . . . . 1 Energy Cannon 4 | . . . 4 . . . . . Ballistic Gun 38 | 1 . 1 9 2 9 . 9 7 Ballistic Cannon . | . . . . . . . . . Launcher 13 | . 1 1 5 2 . 1 3 . Special Weapon 1 | . . . . . 1 . . . Impact Weapon . | . . . . . . . . . Slashing Weapon . | . . . . . . . . . Piercing Weapon . | . . . . . . . . . Special Melee Weapon 3 | . . . . . . . . 3 Unidentified Prototypes 2 | . . . . . 2 . . . Parts Lost 20 | . . 2 2 . 4 1 4 7 Power 1 | . . . . . . . 1 . Propulsion 10 | . . 2 1 . 1 . 1 5 Utility 3 | . . . . . 1 1 1 . Weapon 6 | . . . 1 . 2 . 1 2 Highest Loss Streak 5 | . . 2 1 . 3 1 2 5 To Critical Strikes 3 | . . . . . 3 . . . Average Slot Usage (%) 95 | . 86 99 98 100 96 87 93 98 Engine 6 | . 5 . 5 11 6 11 7 9 Core 4 | . 8 14 5 . 4 . 1 . Treads 22 | . 28 27 21 22 21 22 17 26 Leg 1 | . . . . . . . 8 . Device 7 | . . . . . 5 11 22 25 Storage 11 | . 14 14 11 11 11 11 9 9 Processor 4 | . 1 14 8 . . 8 4 . Protection 8 | . . . 12 22 16 1 . . Energy Gun 2 | . 13 3 1 2 . . . . Energy Cannon 1 | . . . 7 . . . . . Ballistic Gun 19 | . 14 22 19 24 19 16 19 24 Launcher 3 | . . 1 4 6 4 5 2 . Naked Turns . | . . . . . . . . . Heaviest Build 59 | 11 30 30 47 48 59 49 58 44 Greatest Support 60 | 40 40 40 43 43 43 40 60 60 Greatest Overweight (x) 2 | . . . 1 1 1 1 2 . Average Overweight (x) . | . . . . 1 . . . . Largest Inventory Capacity 15 | 8 15 15 15 15 15 15 15 15 Average Capacity 14 | 6 14 15 15 15 15 15 15 15 Most Carried 15 | 5 15 15 15 15 15 15 15 15 Average Carried 14 | 3 11 13 14 14 13 14 14 14 Final Capacity 15 | 8 15 15 15 15 15 15 15 15 Final Carried 15 | 4 14 13 15 15 15 15 15 13 Class Distribution -------------------- 39% | Mutant 19% | Scavenger-Mutant 14% | Tank 14% | Scavenger-Gunner 8% | Gunner 3% | Scavenger-Tank Dominant Class ---------------- Mutant | -10/Materials Mutant | -10/Mines Mutant | -9/Materials Tank | -9/Mines Scavenger-Mutant | -9/Exiles Mutant | -8/Mines Scavenger-Mutant | -8/Materials Scavenger-Gunner | -8/Garrison Resources | -11 -10 -10 -9 -9 -9 -8 -8 -8 ----------- Run | Jun Mat Min Mat Min Exi Min Mat Gar Matter Collected 4587 | 269 656 118 948 58 455 202 1183 698 Remotely . | . . . . . . . . . Salvage Created 6634 | 104 641 98 2136 46 157 606 2041 805 Parts 406 | 11 36 8 149 2 14 42 114 30 Haulers Intercepted 11 | . 1 . 5 . . . 5 . Recyclers Shooed 8 | . . . 3 . . . 5 . Parts Field Recycled . | . . . . . . . . . Retrieved Matter . | . . . . . . . . . Parts Self-Destructed . | . . . . . . . . . Prevented . | . . . . . . . . . Kills | -11 -10 -10 -9 -9 -9 -8 -8 -8 ------- Run | Jun Mat Min Mat Min Exi Min Mat Gar Combat Hostiles Destroyed 118 | . 14 7 39 3 2 10 29 14 Guns 77 | . 10 7 14 3 1 8 20 14 Cannons 12 | . . . 12 . . . . . AOE 27 | . 3 . 12 . 1 2 9 . Classes Destroyed 18 | 3 4 . 5 . 1 2 3 . Worker 9 | 1 1 . 1 . . 2 4 . Builder 8 | . . . . . . 2 6 . Tunneler 3 | 2 1 . . . . . . . Hauler 11 | . 1 . 5 . . . 5 . Recycler 12 | 1 1 . 6 . . 1 3 . Mechanic 2 | . . . 2 . . . . . Operator 1 | . . . . . . . 1 . Watcher 11 | . 2 . 5 . . . 4 . Swarmer 37 | . 3 6 14 3 . . 7 4 Grunt 53 | . 11 . 14 . . 8 12 8 Brawler 3 | . . . 2 . . . . 1 Duelist 3 | . . . 1 . . 1 1 . Protector 1 | . . . 1 . . . . . Sentry 13 | . . . 7 . . . 6 . Specialist 2 | . . . . . . . 2 . Hunter 2 | . . . . . . 1 . 1 Heavy 1 | . . . . . . . 1 . Assembled 4 | . . . . . 4 . . . Thug 1 | . . . 1 . . . . . Best Kill Streak 16 | 2 3 3 8 2 2 6 16 5 Combat Bots Only 7 | . 3 3 5 2 1 3 7 5 Max Kills in Single Turn 5 | 1 3 1 4 2 3 2 5 2 Gunslinging 1 | . . . . 1 . . . . Exploded 4 | . 3 . 4 . 1 2 4 . Melee . | . . . . . . . . . Uniques/NPCs Destroyed 3 | . . 1 . . 2 . . . YI-UF0 (-10/Mines) EX-HEX (-9/Exiles) 8R-AWN (-9/Exiles) Combat | -11 -10 -10 -9 -9 -9 -8 -8 -8 -------- Run | Jun Mat Min Mat Min Exi Min Mat Gar Damage Taken 5927 | . 349 296 1270 60 1080 225 1203 1444 Core 1021 | . 56 44 154 8 117 66 191 385 Absorbed by Shields . | . . . . . . . . . Regen/Repaired (Parts) 290 | . . . 215 . . . 75 . Core Remaining (%) 57 | 100 . 60 . . . 13 . . Volleys Fired 416 | 9 54 19 105 3 38 24 102 62 Largest 3 | 2 2 2 3 3 3 1 3 3 Hottest 166 | 60 70 70 166 76 86 30 97 110 Shots Fired 986 | 12 104 38 276 7 104 54 219 172 Gun 878 | 12 103 38 184 7 95 51 216 172 Cannon 88 | . . . 88 . . . . . Launcher 13 | . 1 . 4 . 2 3 3 . Special 7 | . . . . . 7 . . . Kinetic 790 | 3 54 28 178 7 95 51 216 158 Thermal 183 | 9 49 10 94 . 7 . . 14 Explosive 11 | . 1 . 4 . 2 3 1 . Electromagnetic 2 | . . . . . . . 2 . Robot Hit Streak 21 | 8 10 14 20 5 10 7 17 21 Robot Miss Streak 5 | 1 3 2 5 1 4 3 5 4 Penetration Max 2 | . . . . . . 1 2 1 Secondary Targets 7 | . 1 2 . 1 1 . . 2 Max Gunslinging Chain 1 | . 1 1 . 1 1 . . 1 Autonomous 52 | . . . . . . 30 22 . Shots Hit Robots 631 | 10 71 26 155 5 70 39 149 106 Core Hits 290 | 5 38 7 81 4 21 25 67 42 Critical Kills 19 | . . . 3 1 . 5 6 4 Critical Parts Destroyed 17 | . . . 2 . . 2 7 6 Critical Strikes 42 | . 4 1 6 1 . 7 13 10 Burn 6 | . 4 1 1 . . . . . Meltdown 1 | . . . 1 . . . . . Destroy 35 | . . . 4 1 . 7 13 10 Melee Attacks 7 | . . . . . . . . 7 Impact . | . . . . . . . . . Slashing . | . . . . . . . . . Piercing . | . . . . . . . . . Sneak Attacks . | . . . . . . . . . Combat Hostiles . | . . . . . . . . . Follow-up Attacks . | . . . . . . . . . Damage Inflicted 13166 | 108 942 325 2960 92 1450 1360 4534 1395 Guns 9379 | 108 856 321 1124 89 1139 992 3355 1395 Cannons 1112 | . . . 1112 . . . . . Explosions 2609 | . 82 . 715 . 266 367 1179 . Melee . | . . . . . . . . . Ramming 21 | . 4 4 9 3 . 1 . . Kinetic 8502 | 22 415 220 1049 89 1139 992 3355 1221 Thermal 2786 | 86 441 101 1187 . 45 107 645 174 Explosive 1688 | . 82 . 715 . 266 260 365 . Electromagnetic 169 | . . . . . . . 169 . Impact . | . . . . . . . . . Slashing . | . . . . . . . . . Piercing . | . . . . . . . . . Highest Corruption 1 | . . . . . . . 1 1 Average Corruption 1 | . . . . . . . 1 1 Corruption Purged . | . . . . . . . . . Corruption Blocked . | . . . . . . . . . Effects 19 | . . . . . . . 10 9 Message Errors 3 | . . . . . . . 2 1 Matter Fused 3 | . . . . . . . 2 1 Heat Flow Errors 3 | . . . . . . . 2 1 Energy Discharges 2 | . . . . . . . . 2 Parts Fused 1 | . . . . . . . 1 . Data Loss (minor) 3 | . . . . . . . 1 2 Data Loss (major) 1 | . . . . . . . 1 . Misfires 1 | . . . . . . . 1 . Weapon Failures 2 | . . . . . . . . 2 Overload Shots . | . . . . . . . . . Overflow Damage 224 | . . . 67 . . . 157 . Projectiles 21 | . . . 21 . . . . . Explosions 203 | . . . 46 . . . 157 . Melee . | . . . . . . . . . Knockbacks . | . . . . . . . . . Impact . | . . . . . . . . . Kinetic . | . . . . . . . . . Secondary . | . . . . . . . . . Self-Inflicted Damage 231 | . . . 130 . . 23 78 . Shots 7 | . . . 3 . . 1 3 . Rammed 8 | . 2 1 3 1 . 1 . . Targets Rammed 9 | . 2 1 3 1 . 1 1 . Kicked . | . . . . . . . . . Crushed 1 | . . . . . . . 1 . Highest Temperature 558 | . 193 105 342 18 310 25 363 558 Average Temperature 84 | . 43 44 83 9 139 11 75 110 Received Heat Transfer 1545 | . 186 . 351 . 9 81 360 558 Effects 19 | . . . 5 . 7 . 1 6 Shutdowns 1 | . . . 1 . . . . . Energy Bleed 2 | . . . 1 . 1 . . . Interference 9 | . . . 3 . 6 . . . Matter Decay 1 | . . . . . . . 1 . Damage (minor) 2 | . . . . . . . . 2 Damage (major) 2 | . . . . . . . . 2 Damage (core) 2 | . . . . . . . . 2 Siege Activations . | . . . . . . . . . Robots Corrupted . | . . . . . . . . . Combat Hostiles . | . . . . . . . . . Parts Fried . | . . . . . . . . . Impact Corruptions . | . . . . . . . . . Robots Melted 2 | . 1 . 1 . . . . . Combat Hostiles 2 | . 1 . 1 . . . . . Parts Melted 10 | . 4 . 2 . 3 . 1 . Heat Transferred 5069 | 200 1462 370 2151 . 36 150 350 350 Parts Sabotaged . | . . . . . . . . . Parts Stolen . | . . . . . . . . . Parts Stripped . | . . . . . . . . . Power Chain Reactions 1 | . . . . . . . 1 . Missiles Intercepted . | . . . . . . . . . Alert | -11 -10 -10 -9 -9 -9 -8 -8 -8 ------- Run | Jun Mat Min Mat Min Exi Min Mat Gar Peak Influence 883 | 20 167 89 883 399 . 192 626 724 Initial 406 | . 13 . . 334 . . . 406 Average 223 | 8 61 18 385 156 . 45 277 579 Maximum Alert Level 3 | . . . 3 1 . . 2 3 Low Security (%) 61 | 100 100 100 38 55 . 100 44 . Level 1 14 | . . . 11 44 . . 23 . Level 2 18 | . . . 27 . . . 31 92 Level 3 6 | . . . 22 . . . . 7 Level 4 . | . . . . . . . . . Level 5 . | . . . . . . . . . High Security . | . . . . . . . . . Max Security . | . . . . . . . . . Squads Dispatched 13 | . 3 . 8 . . . 2 . Investigation 6 | . 2 . 3 . . . 1 . Extermination . | . . . . . . . . . Reinforcement 5 | . 1 . 3 . . . 1 . Assault 2 | . . . 2 . . . . . Garrison . | . . . . . . . . . Intercept . | . . . . . . . . . Searches Triggered . | . . . . . . . . . Construction Impeded . | . . . . . . . . . Haulers Reinforced . | . . . . . . . . . Active Scanning Responses . | . . . . . . . . . Cargo Convoy Interrupts . | . . . . . . . . . Stealth | -11 -10 -10 -9 -9 -9 -8 -8 -8 --------- Run | Jun Mat Min Mat Min Exi Min Mat Gar Distress Signals 4 | . 2 . 2 . . . . . Communications Jammed 22 | . . . . . . . 22 . Distress Signals 17 | . . . . . . . 17 . Times Spotted 170 | . 23 10 58 7 5 10 40 17 Peak Tracking Total 7 | . 4 3 7 4 6 3 6 6 Tactical Retreats 14 | . . . 6 1 2 . 5 . Traps | -11 -10 -10 -9 -9 -9 -8 -8 -8 ------- Run | Jun Mat Min Mat Min Exi Min Mat Gar Traps Triggered 1 | . 1 . . . . . . . Indirectly . | . . . . . . . . . Trap Hack Attempts . | . . . . . . . . . Triggered . | . . . . . . . . . Disarmed . | . . . . . . . . . Reprogrammed . | . . . . . . . . . Reused . | . . . . . . . . . Traps Extracted . | . . . . . . . . . Installed . | . . . . . . . . . Triggered . | . . . . . . . . . Machines | -11 -10 -10 -9 -9 -9 -8 -8 -8 ---------- Run | Jun Mat Min Mat Min Exi Min Mat Gar Machines Disabled 20 | . . 1 4 . 5 1 8 1 Max in Single Turn 2 | . . . 2 . 2 1 2 1 Garrison Relay 1 | . . . . . . . . 1 Machines Repaired . | . . . . . . . . . Machines Sabotaged . | . . . . . . . . . Overloaded Fab Kills . | . . . . . . . . . Hacking | -11 -10 -10 -9 -9 -9 -8 -8 -8 --------- Run | Jun Mat Min Mat Min Exi Min Mat Gar Machines Accessed 39 | . 9 . 12 . 4 . 14 . Terminals 23 | . 7 . 7 . . . 9 . Fabricators . | . . . . . . . . . Repair Stations 4 | . . . 2 . . . 2 . Recycling Units 4 | . 2 . 2 . . . . . Scanalyzers 3 | . . . 1 . . . 2 . Garrison Access 1 | . . . . . . . 1 . Total Hacks 133 | . 25 . 36 . 27 . 45 . Successful 81 | . 11 . 18 . 27 . 25 . Failed 50 | . 13 . 18 . . . 19 . Catastrophic 10 | . 2 . 4 . . . 4 . Database Lockouts 2 | . 1 . . . . . 1 . Manual 63 | . 19 . 19 . 1 . 24 . Terminals 75 | . 21 . 20 . . . 34 . Fabricators . | . . . . . . . . . Repair Stations 12 | . . . 8 . . . 4 . Recycling Units 7 | . 4 . 3 . . . . . Scanalyzers 11 | . . . 5 . . . 6 . Garrison Access 1 | . . . . . . . 1 . Terminal Hacks 49 | . 7 . 5 . 27 . 10 . Record 26 | . . . . . 26 . . . Robot Analysis 1 | . . . . . . . 1 . Prototype ID Bank 14 | . 6 . 4 . . . 4 . Branch Access Points 2 | . 1 . 1 . . . . . Terminal Index 1 | . . . . . . . 1 . Repair Station Index 1 | . . . . . . . 1 . Unreport Threat 2 | . . . . . . . 2 . Locate Traps 1 | . . . . . . . 1 . EX-Prototype ID Bank 1 | . . . . . 1 . . . Fabricator Hacks . | . . . . . . . . . Repair Station Hacks 9 | . . . 6 . . . 3 . Scan Component 5 | . . . 3 . . . 2 . Repair 4 | . . . 3 . . . 1 . Recycling Unit Hacks 3 | . 1 . 2 . . . . . Retrieve Components 3 | . 1 . 2 . . . . . Scanalyzer 9 | . . . 3 . . . 6 . Insert Component 6 | . . . 2 . . . 4 . Analyze 3 | . . . 1 . . . 2 . Garrison Access Hacks 1 | . . . . . . . 1 . Unlock Access 1 | . . . . . . . 1 . Unauthorized Hacks 10 | . 3 . 2 . . . 5 . Terminals 10 | . 3 . 2 . . . 5 . Botnet 10 | . 3 . 2 . . . 5 . Fabricators . | . . . . . . . . . Repair Stations . | . . . . . . . . . Recycling Units . | . . . . . . . . . Scanalyzers . | . . . . . . . . . Garrison Access . | . . . . . . . . . Data Cores Recovered 1 | . . . . . . . 1 . Used . | . . . . . . . . . Hacking Detections 31 | . 8 . 10 . . . 13 . Full Trace Events 5 | . 1 . 3 . . . 1 . Feedback Events 1 | . . . . . . . 1 . Corruption 1 | . . . . . . . 1 . Feedback Blocked . | . . . . . . . . . Robot Schematics Acquired . | . . . . . . . . . Robots Built . | . . . . . . . . . Authchips . | . . . . . . . . . Time . | . . . . . . . . . Total Robot Build Rating . | . . . . . . . . . Part Schematics Acquired 3 | . . . 1 . . . 2 . Parts Built . | . . . . . . . . . Authchips . | . . . . . . . . . Time . | . . . . . . . . . Total Part Build Rating . | . . . . . . . . . Parts Repaired 4 | . . . 3 . . . 1 . Time 141 | . . . 90 . . . 51 . Parts Recycled . | . . . . . . . . . Recycled Matter . | . . . . . . . . . Retrieved Matter . | . . . . . . . . . Retrieved Components 29 | . 10 . 19 . . . . . Parts Scanalyzed 4 | . . . 2 . . . 2 . Part Schematics Acquired 3 | . . . 1 . . . 2 . Parts Damaged . | . . . . . . . . . Bothacking | -11 -10 -10 -9 -9 -9 -8 -8 -8 ------------ Run | Jun Mat Min Mat Min Exi Min Mat Gar Used RIF Installer 2 | . . . . . . . . 2 Alert ID Control 1 | . . . . . . . . 1 Robots Hacked 2 | . . . . . . . . 2 Non-combat . | . . . . . . . . . Combat 2 | . . . . . . . . 2 Robot Hacks Applied 2 | . . . . . . . . 2 parse_system 1 | . . . . . . . . 1 formatsys_high 1 | . . . . . . . . 1 Relay Couplers Released 3 | . . . . . . . . 3 Machine Destruction 3 | . . . . . . . . 3 Attached 1 | . . . . . . . . 1 Fabnet Peak Effective % . | . . . . . . . . . Robots Rewired . | . . . . . . . . . Allies Hacked . | . . . . . . . . . Hacks Repelled . | . . . . . . . . . Allies | -11 -10 -10 -9 -9 -9 -8 -8 -8 -------- Run | Jun Mat Min Mat Min Exi Min Mat Gar Total Allies 7 | . . 1 . 5 . . . 1 Largest Group 5 | . . 1 1 5 5 . . 1 Highest-Rated Group 81 | . . 31 31 81 81 . . 24 Highest-Rated Ally 31 | . . 31 31 31 31 . . 24 Total Orders 2 | . . . . . 2 . . . STAY 1 | . . . . . 1 . . . FOLLOW 1 | . . . . . 1 . . . Ally Attacks 49 | . . 6 6 . 35 . . 2 Total Damage 387 | . . 82 22 . 257 . . 26 Kills 6 | . . 3 . . 3 . . . Allies Corrupted . | . . . . . . . . . Allies Melted . | . . . . . . . . . Intel | -11 -10 -10 -9 -9 -9 -8 -8 -8 ------- Run | Jun Mat Min Mat Min Exi Min Mat Gar Robot Analysis Total 1 | . . . . . . . 1 . Derelict Logs Recovered 1 | . . . . 1 . . . . Drone Launches . | . . . . . . . . . Drone Recoveries . | . . . . . . . . . Exploration | -11 -10 -10 -9 -9 -9 -8 -8 -8 ------------- Run | Jun Mat Min Mat Min Exi Min Mat Gar Turns Passed 15696 | 119 1654 1218 3217 1754 2757 1520 2739 718 Spaces Moved 6972 | 48 743 670 1401 689 1093 738 1293 297 Core 2 | 2 . . . . . . . . Treads 6532 | 46 743 670 1401 689 1093 738 855 297 Legs 438 | . . . . . . . 438 . Wheels . | . . . . . . . . . Hover . | . . . . . . . . . Flight . | . . . . . . . . . Fastest Speed 50 | 50 160 160 160 240 160 160 110 160 Average Speed 183 | 155 160 160 170 240 215 188 166 162 Slowest Speed 260 | 160 160 160 240 240 240 240 260 163 Overloaded Moves . | . . . . . . . . . Propulsion Burnouts . | . . . . . . . . . Robots Hopped . | . . . . . . . . . Cave-ins Triggered . | . . . . . . . . . Exploration Rate (%) 70 | 4 90 98 78 99 52 99 78 33 Regions Visited 8 Branch Regions 4 Pre-discovered Areas 1 | . . 1 . . . . . . Known Exits Taken 3 | . 1 . 1 . . . 1 . Unknown Exits Taken 5 | 1 . 1 . 1 1 1 . . Scrap Searched 4 | . . 1 . 2 . 1 . . Spaces Dug 1 | . . . . . . . . 1 Terrain Destroyed 227 | . 7 . 48 . 14 58 89 11 Melee . | . . . . . . . . . Projectile 69 | . . . . . 5 21 35 8 AOE 154 | . 7 . 48 . 9 36 54 . Terrain Rammed . | . . . . . . . . . Walls Destroyed . | . . . . . . . . . Machines Disabled . | . . . . . . . . . Actions | -11 -10 -10 -9 -9 -9 -8 -8 -8 --------- Run | Jun Mat Min Mat Min Exi Min Mat Gar Total 9269 | 79 1105 778 2034 783 1416 852 1767 455 Wait 1554 | 10 277 78 431 82 222 80 312 62 Move 6964 | 47 742 669 1400 688 1092 737 1292 297 Hop . | . . . . . . . . . Pick Up 92 | 7 16 4 25 2 21 3 9 5 Fast Attach 22 | 3 1 . 7 . 1 1 9 . Attach 32 | 3 1 2 5 . 9 . 8 4 Detach 2 | . . . . . 1 . 1 . Swap 74 | . 4 2 25 4 7 3 17 12 Drop 94 | . 8 3 33 3 25 3 16 3 Fire 416 | 9 54 19 105 3 38 24 102 62 Melee 7 | . . . . . . . . 7 Ram . | . . . . . . . . . Kick . | . . . . . . . . . Crush 9 | . 2 1 3 1 . 1 1 . Escape Stasis . | . . . . . . . . . Rewire 3 | . . . . . . . . 3 Trap . | . . . . . . . . . Miscellaneous . | . . . . . . . . . Route ------- -11/Junkyard -10/Materials (discovered 5 exits: *Mat x3 / *Min x2) -10/Mines (discovered 2 exits: *Mat x2) -9/Materials (discovered 3 exits: *Mat x2 / *Min) -9/Mines (discovered 4 exits: *Mat x2 / *Exi / [*Zio]) -9/Exiles -8/Mines (discovered 2 exits: *Mat x2) -8/Materials (discovered 3 exits: [*Fac x2] / Gar) -8/Garrison History --------- Turn | Location | Event 12 | -11/Junkyard | Discovered new exit (range 14) 120 | -11/Junkyard | Entered Materials 128 | -10/Materials | Discovered new exit (range 16) 307 | -10/Materials | Build established: Mutant 642 | -10/Materials | Discovered new exit (range 8) 1092 | -10/Materials | Discovered new exit (range 5) 1205 | -10/Materials | Discovered new exit (range 14) 1241 | -10/Materials | Central database locked down 1241 | -10/Materials | Identified exit to Mines 1709 | -10/Materials | Discovered new exit (range 8) 1774 | -10/Materials | Entered Mines 1775 | -10/Mines | Learned location of Storage (-7) 2040 | -10/Mines | Discovered new exit (range 5) 2150 | -10/Mines | Found a damaged Exp. Sensor Array with a note attached 2155 | -10/Mines | Found Prototype Device 2293 | -10/Mines | Destroyed YI-UF0 2544 | -10/Mines | Escorted by a lone wolf Derelict 2863 | -10/Mines | Discovered new exit (range 5) 2992 | -10/Mines | Entered Materials 2992 | -9/Materials | Accompanied by 1 ally 2992 | -9/Materials | Evolved 2 slots: Utility x1, Weapon x1 3156 | -9/Materials | Discovered new exit (range 13) 3202 | -9/Materials | Repaired Lgt. Nuclear Core 3229 | -9/Materials | Repaired Assault Rifle 3693 | -9/Materials | Repaired Lgt. Armor Plating? 4060 | -9/Materials | Identified Exp. Sensor Array 4927 | -9/Materials | Build established: Scavenger-Gunner 4985 | -9/Materials | Discovered new exit (range 10) 5229 | -9/Materials | Build established: Gunner 5283 | -9/Materials | Identified exit to Mines 5392 | -9/Materials | First assault squad dispatched 5743 | -9/Materials | Discovered new exit (range 15) 6129 | -9/Materials | Build established: Scavenger-Tank 6209 | -9/Materials | Entered Mines 6257 | -9/Mines | A weapon hastily lodged in a ceiling crevice suddenly fell to the ground 6286 | -9/Mines | Met a Derelict bent on vengeance 6727 | -9/Mines | Learned Materials security intel 6730 | -9/Mines | Assisted by bots powering up and referring to "LRC-V3" 6901 | -9/Mines | Build established: Tank 6911 | -9/Mines | Deemed a non-threat by the Exiles lab entrance 6911 | -9/Mines | Discovered new exit (range 5) 7368 | -9/Mines | Discovered new exit (range 15) 7377 | -9/Mines | A Derelict revealed a hidden shortcut to a safe place 7489 | -9/Mines | Discovered new exit (range 10) 7963 | -9/Mines | Entered Exiles 7963 | -9/Exiles | Accompanied by 5 allies 7993 | -9/Exiles | Led the pair of lost Derelicts to a safe place 8009 | -9/Exiles | Discovered new exit (range 15) 8052 | -9/Exiles | Met 8R-AWN 8091 | -9/Exiles | Met EX-HEX 8167 | -9/Exiles | Met EX-BIN 8278 | -9/Exiles | Aligned with FarCom system 8280 | -9/Exiles | Given EX-Vault access code 8336 | -9/Exiles | Opened EX-Vault 8366 | -9/Exiles | Found AWS/Gauss 8407 | -9/Exiles | Warned to stay clear of 0b10 Research branches 8654 | -9/Exiles | Build established: Mutant 9133 | -9/Exiles | Attacked by the Exiles 9143 | -9/Exiles | Destroyed EX-HEX 9182 | -9/Exiles | Core integrity fell below 50% 9288 | -9/Exiles | Destroyed 8R-AWN 9292 | -9/Exiles | Lost 3 parts (1u2w) 9310 | -9/Exiles | Found Prototype Processor 9314 | -9/Exiles | Found Prototype Ballistic Gun 9315 | -9/Exiles | Identified 8R-AWN's Boregun 9584 | -9/Exiles | Build established: Scavenger-Mutant 10485 | -9/Exiles | Found Army-in-a-Box 10720 | -9/Exiles | Stole two prototypes: Army-in-a-Box, AWS/Gauss 10720 | -9/Exiles | Entered Mines 10923 | -8/Mines | Discovered new exit (range 8) 11275 | -8/Mines | Build established: Scavenger-Gunner 11283 | -8/Mines | Core integrity fell below 20% 11741 | -8/Mines | Discovered new exit (range 13) 11848 | -8/Mines | Build established: Mutant 12240 | -8/Mines | Entered Materials 12240 | -8/Materials | Evolved 2 slots: Propulsion x1, Utility x1 12484 | -8/Materials | Destroyed 7 combat bots 12530 | -8/Materials | Build established: Scavenger-Mutant 12812 | -8/Materials | Identified Exp. Targeting Computer 13054 | -8/Materials | Build established: Gunner 13359 | -8/Materials | Build established: Mutant 13458 | -8/Materials | Discovered new exit (range 4) 13795 | -8/Materials | Build established: Scavenger-Gunner 14347 | -8/Materials | Central database locked down 14373 | -8/Materials | Build established: Scavenger-Mutant 14580 | -8/Materials | Discovered new exit (range 16) 14867 | -8/Materials | Repaired Cld. Ion Engine 14974 | -8/Materials | Identified exit to Garrison 14979 | -8/Materials | Entered Garrison 15010 | -8/Garrison | Installed Relay Interface Framework 15039 | -8/Garrison | Triggered checkpoint 15133 | -8/Garrison | Garrison Relay disabled 15414 | -8/Garrison | Expanded RIF knowledge: Alert ID Control 15512 | -8/Garrison | Triggered checkpoint 15548 | -8/Garrison | Core integrity fell below 50% 15588 | -8/Garrison | Triggered checkpoint 15631 | -8/Garrison | Triggered checkpoint 15650 | -8/Garrison | Triggered checkpoint 15697 | -8/Garrison | Core integrity fell below 20% 15698 | -8/Garrison | Core destroyed Last Messages --------------- 15653_ Critical hit (Burn: +37). 15656_ System corrupted: Component data lost. 15665_ G-47 Trooper destroyed. 15678_ System corrupted: Particle Gun failed to cycle. 15682_ Lgt. Treads destroyed. 15686_ Destroyed Lgt. Nuclear Core. 15686_ Minigun destroyed. 15690_ System corrupted: Matter fused (-9). 15690_ G-47 Trooper destroyed. 15691_ Overheating: Relay Coupler [Specialist] damaged (-4). 15691_ Overheating: Adv. Transmission Jammer damaged (-2). 15692_ Lgt. Treads destroyed. 15694_ G-47 Trooper destroyed. 15695_ Overheating: Cld. Ion Engine damaged (-17). 15695_ Acquired 39 matter. 15696_ Overheating: Cld. Ion Engine damaged (-9). 15696_ Lgt. Treads destroyed. 15696_ G-50 Soldier destroyed. 15697_ Overheating: Core damaged (-93). 15698_ Overheating: Core damaged (-66). Map ----- +----------------------------------------------------+ | ?????????????????????????????????????????????????? | | ?????????????????????????????????????????????????? | | ?????????????????????????????????????????????????? | | ????????????????????????? ??????????????????????? | | ????????????????????????? ??????????????????????? | | ????????????????????????? ??????????????????????? | | ????????????????????????# #?????????????????????? | | ??????????????????#####?# #?????????????????????? | | ??????????????????# ?# #?????????????????????? | | ????????????####### ## ##????????????????????? | | ??????????? #????????????????????? | | ???????????? #????????????????????? | | ???????????? ? #????????????????????? | | ?????????????# ?#= ## #????????????????????? | | ???????????### ##%* ## ###??????????????????? | | ???????????#"%" #??????????????????? | | ???????????# " ^ #??????????????????? | | ???????????# ^ #??????????????????? | | ???????????# ^ % #??????????????????? | | ?????????????#???##= ## "###??????????????????? | | ?????????????# ## =%##*% ############?????????? | | ?????????????# [% == =% #?????????? | | ?????????????# ==%*! = #?????????? | | ?????????????# !!%%=[ #?????????? | | ?????????????## ## ##g[######### #?????????? | | ??????????????# ??# ##@=#???????# #?????????? | | ??????????????????#######* #???????# #?????????? | | ????????????????????????# #???????# #?????????? | | ????????????????????????# #???????# #?????????? | | ????????????????????????# #???????# [#?????????? | | ????????????????????????# #???????# #?????????? | | ????????????????????????# ???????# #?????????? | | ????????????????????????# ???????# #?????????? | | ????????????????????????# #???????# #?????????? | | ????????????????????????# #???????# #?????????? | | ????????????????????????" ???????# #?????????? | | ????????????????????????! ???????# #?????????? | | ????????????????????????! ???????# #?????????? | | ????????????????????????! ???????# #?????????? | | ????????????????????????! ???????# #?????????? | | ????????????????????????? ???????# #?????????? | | ???????????????????????????????????# ########### | | ???????????????????????????????????# | | ???????????????????????????????????# | | ???????????????????????????????????# | | ???????????????????????????????????############### | | ?????????????????????????????????????????????????? | | ???????????????????????????????????############### | | ???????????????????????????????????# | | ???????????????????????????????????# ! =* = | +----------------------------------------------------+ Best States ------------- Heat Dissipation 54 Energy Generation 19 Energy Capacity 310 Matter Stores 300 Matter Capacity 300 Sight Range 16 Terrain Scan Density 10 Jamming Range 16 Armor Coverage 300 Resistance: TH 10 Weapon Cycling 25 Evasion (%) 55 Targeting Accuracy 6 Recoil Reduction 3 Relay Coupler Types 1 Relay Coupler Value 23 Item Schematics ----------------- Beamcaster | -9/Materials | Scanalyzed Exp. Targeting Computer | -8/Materials | Scanalyzed Hcp. Matter Pod | -8/Materials | Scanalyzed Robot Schematics ------------------ None Fabricated ------------ Nothing Alien Tech Used ----------------- None Achievements -------------- Assimilation Complete Safety First Total Silence Challenges ------------ None Game ------ Seed ThunderAntigravGenerator Manual? 0 Play Time 02:24:38 Cumulative 31.2 hours Start 2023.07.08 @ 17:51:26 End 2023.07.08 @ 21:39:33 Sessions 3 Manual Loads 0 Difficulty Rogue Special Mode None Game No. 17 Rogue 17 Adventurer 0 Explorer 0 Win Type - Total 0 Types 0/0/0/0/0/0/0/0/0 Lore% 25 Gallery% 27 Achievement% 28 Wizard Run 0 Options --------- ASCII 0 Keyboard 0 Movement Mouse Keybinds 0 Fullscreen 1 Font 18/SmallcapsGlow Map View 76x50 Tactical HUD 1 Map Filters NONE Filters NONE Steam X RUN: 37a645b2-db81-4648-a967-d74e3d52668d